{"text_format":"1","workbook":"xlsx","n_sheets":4,"sheets":["قاعدة البيانات","سند تحصيل","إشعار إصدار سند تحصيل","إشعار بالخصم"],"not_rendered":{"charts":0,"images":0,"macros":1,"external_links":1,"defined_names":4,"comments":0,"pivot_tables":0},"unopened":[],"bounds":{"document_bytes":16777216,"sheet_cells":100000,"rows_first":2000,"rows_last":500,"rows_between":2000,"halvings":0,"cell_chars":16384,"cell_head_chars":4096},"cells_cut":0,"cells_raw":0,"read":"whole","date_system":"1900"}

{"sheet":"قاعدة البيانات","index":0,"n_rows":20,"n_cols":16,"rows_kept":20,"cut":false,"hidden":false,"merged":[[15,12,15,13],[12,9,12,11],[12,12,12,13],[10,10,10,11],[10,13,10,14],[11,10,11,12]]}
[]
[null,null,null,"الجمهورية الجزائرية الديمقراطية الشعبية"]
[]
[null,"وزارة الاشغال العمومية",null,null,null,null,"الطارف في :"]
[null,"مديرية الاشغال العمومية والنقل لولاية الطارف"]
[]
[]
[]
[]
["الإسم واللقب"," الرقم التسلسلي","العنوان","رقم الحساب","البنك","رقم الضمان الاجتماعي","الصافي NET","عدد أيام الغياب","الخصم",null,null,null,null,null,null,"البنك"]
["بلال منذر",1,"ماكسنة بلدية بوقوس","123456789999/99","ب.ف.ت.ر بن مهيدي",11111111111111,32000,5,{"$f":"(G11/30)*H11","v":5333.3333333333339},null,null,null,null,null,null,"ب.ف.ت ر الطارف"]
[" حسام منذر",2,"بوثلجة ولاية الطارف","444444444444/44","ب.ف.ت.ر الذرعان",22222222222222,1500,4,{"$f":"(G12/30)*H12","v":200},null,null,null,null,null,null,"ب.ف.ت ر بوحجار"]
["سعد هادف",3,"بوقوس ولاية الطارف","555555555555/51","ب.ف.ت.ر بن مهيدي",333333333333333,20000,3,{"$f":"(G13/30)*H13","v":2000},null,null,null,null,null,null,"ب.ف.ت.ر الذرعان"]
["عماد بوتبن",4,"بحيرة الطيور","88888888888/88","ح ج ب",55555555555555,25000,2,{"$f":"(G14/30)*H14","v":1666.6666666666667},null,null,null,null,null,null,"ب.ف.ت.ر البسباس"]
[null,null,null,null,null,null,null,null,null,null,null,null,null,null,null,"ب.ف.ت.ر بن مهيدي"]
["الإسم واللقب"," الرقم التسلسلي","العنوان","رقم الحساب","البنك","رقم الضمان الاجتماعي","الصافي NET","عدد أيام الغياب","الخصم",null,null,null,null,null,null,"ق.ش.ج الطارف"]
[" حسام منذر",{"$f":"VLOOKUP($A$17,Tableau1[[الإسم واللقب]:[ الرقم التسلسلي]],2,0)","v":2},{"$f":"VLOOKUP($A$17,Tableau1[[الإسم واللقب]:[العنوان]],3,0)","v":"بوثلجة ولاية الطارف"},{"$f":"VLOOKUP($A$17,Tableau1[[الإسم واللقب]:[رقم الحساب]],4,0)","v":"444444444444/44"},{"$f":"VLOOKUP($A$17,Tableau1[[الإسم واللقب]:[البنك]],5,0)","v":"ب.ف.ت.ر الذرعان"},{"$f":"VLOOKUP($A$17,Tableau1[[الإسم واللقب]:[رقم الضمان الاجتماعي]],6,0)","v":22222222222222},{"$f":"VLOOKUP($A$17,Tableau1[[الإسم واللقب]:[الصافي NET]],7,0)","v":1500},{"$f":"VLOOKUP($A$17,Tableau1[[الإسم واللقب]:[عدد أيام الغياب]],8,0)","v":4},{"$f":"VLOOKUP($A$17,Tableau1[],9,0)","v":200},null,null,null,null,null,null,"ق.ش.ج القالة"]
[null,null,null,null,null,null,null,null,null,null,null,null,null,null,null,"ب.ش.م الطارف"]
[null,null,null,null,null,null,null,null,null,null,null,null,null,null,null,"ح ج ب"]
[null,null,null,null,null,null,null,null,null,null,null,null,null,null,null,"خزينة الطارف"]

{"sheet":"سند تحصيل","index":1,"n_rows":39,"n_cols":11,"rows_kept":39,"cut":false,"hidden":false,"merged":[[36,2,36,4],[13,1,13,2],[23,3,23,4],[34,3,34,4],[23,1,23,2],[34,1,34,2]]}
[]
[null,"                        الجمهورية الجزائرية الديمقراطية الشعبية",null,null,null,null,null,null,"الــرقم التسلسلي",null,{"$f":"IFERROR(INDEX(Tableau1[ [ الرقم التسلسلي] ],MATCH($B$12,Tableau1[الإسم واللقب],0)),\"\")","v":2}]
[]
[]
["وزارة الاشغال العمـــومية والنقـــل",null,null,null,"   الطارف في :","2018-07-15"]
["مديــرية الاشغــال العمومية"]
["لــولايــــــــة الطــــــــــارف"]
["الــرقم التسلسلي          /2018"]
[]
[null,null,"* سند تحصيــل *                          "]
[]
["السيــد :"," حسام منذر","رقم الحساب :",{"$f":"IFERROR(INDEX(Tableau1[رقم الحساب],MATCH($B$12,Tableau1[الإسم واللقب],0)),\"\")","v":"444444444444/44"},{"$f":"IFERROR(INDEX(Tableau1[البنك],MATCH($B$12,Tableau1[الإسم واللقب],0)),\"\")","v":"ب.ف.ت.ر الذرعان"}]
[]
["العنوان :",{"$f":"IFERROR(INDEX(Tableau1[العنوان],MATCH($B$12,Tableau1[الإسم واللقب],0)),\"\")","v":"بوثلجة ولاية الطارف"}]
[]
["  رقم الضمان الاجتماعي :",null,{"$f":"IFERROR(INDEX(Tableau1[رقم الضمان الاجتماعي],MATCH($B$12,Tableau1[الإسم واللقب],0)),\"\")","v":22222222222222}]
[]
["  مطالب لدفع صندوق صندوق السيد أمين الخزينة لولاية الطارف"]
[]
["  و المطالب بدوره بتحصيله في الفصل : 20100707/10 لميزنية الدولة"]
[]
["  بالمبلغ المبين أدناه"]
[]
[null,"سبب الدفع",null,"المبلغ"]
[]
[]
[]
[]
[]
[]
[]
[]
[]
[]
[null,"المجموع",null,{"$f":"IFERROR(INDEX(Tableau1[الخصم],MATCH($B$12,Tableau1[الإسم واللقب],0)),\"\")","v":200}]
[]
[" •  يختم سند التحصيل بمبلغ :",null,{"$f":"[1]!ar(D35)","v":"مائتان دينار جزائري"}]
[]
[null,null,null,null,"المديـــــر"]

{"sheet":"إشعار إصدار سند تحصيل","index":2,"n_rows":37,"n_cols":11,"rows_kept":37,"cut":false,"hidden":false,"merged":[[34,2,34,4],[13,1,13,2],[21,1,21,2],[21,3,21,4],[32,1,32,2],[32,3,32,4]]}
[]
[null,"                        الجمهورية الجزائرية الديمقراطية الشعبية",null,null,null,null,null,null,"الــرقم التسلسلي",null,{"$f":"IFERROR(INDEX(Tableau1[ [ الرقم التسلسلي] ],MATCH($B$12,Tableau1[الإسم واللقب],0)),\"\")","v":4}]
[]
[]
["وزارة الاشغال العمـــومية والنقـــل",null,null,null,"   الطارف في :","2018-07-15"]
["مديــرية الاشغــال العمومية"]
["لــولايــــــــة الطــــــــــارف"]
["الــرقم التسلسلي          /2018"]
[]
[null,null,"* إشعار إصدار سند تحصيل *                             "]
[]
["السيــد :","عماد بوتبن"]
[]
["العنوان :",{"$f":"IFERROR(INDEX(Tableau1[العنوان],MATCH($B$12,Tableau1[الإسم واللقب],0)),\"\")","v":"بحيرة الطيور"}]
[]
["  مطالب لدفع صندوق صندوق السيد أمين الخزينة لولاية الطارف"]
[]
["  و المطالب بدوره بتحصيله في الفصل : 20100707/10 لميزنية الدولة"]
[]
["  بالمبلغ المبين أدناه"]
[]
[null,"سبب الدفع",null,"المبلغ"]
[]
[]
[]
[]
[]
[]
[]
[]
[]
[]
[null,"المجموع",null,{"$f":"IFERROR(INDEX(Tableau1[الخصم],MATCH($B$12,Tableau1[الإسم واللقب],0)),\"\")","v":1666.6666666666667}]
[]
[" •  يختم سند التحصيل بمبلغ :",null,{"$f":"[1]!ar(D33)","v":" ألف وستمائة وستة وستون دينار جزائري وسبعة وستون سنتيم"}]
[]
[null,null,null,null,"المديـــــر"]

{"sheet":"إشعار بالخصم","index":3,"n_rows":38,"n_cols":6,"rows_kept":38,"cut":false,"hidden":false,"merged":[[35,3,35,5],[33,1,33,3],[32,1,32,3],[31,1,31,3],[31,5,33,5]]}
[]
[null,"                        الجمهورية الجزائرية الديمقراطية الشعبية"]
[]
[]
["مديــرية الاشغــال العمومية",null,null,null,"   الطارف في :","2018-07-15"]
["ميزانيـــة الولاية"]
["لــولايــــــــة الطــــــــــارف"]
[]
[null,null,"الجدول رقم"]
[]
["إشعار بالخصم وضع من طرف الأشغال العمومية لفائدة ميزانية الولاية"]
["الفصل :","904/9040"]
["المادة  :",739]
[null,"الرقم","تاريخ الإشعار","إسم المدين","مبلغ التحصيل","ملاحظات"]
[null,null,null,"بلال منذر",5333.33,"ب.ف.ت.ر بن مهيدي"]
[]
[]
[]
[]
[]
[]
[]
[]
[]
[]
[]
[]
[]
[]
[]
[]
[null,"مجموع مبالغ التحصيل"]
[null,"المبالغ السابقة"]
[null,"المجموع العام"]
[]
[null," •  يختم سند التحصيل بمبلغ :",null,{"$f":"[1]!ar(#REF!)","v":{"$error":"#VALUE!"}}]
[]
[null,null,null,null,null,"المديـــــر"]